bitfinex/quotes_BTCUSD_20251201
["timestamp","ask_amount","ask_price","bid_price","bid_amount"]
[1764619501002,0.13440394,85612.0,85609.0,0.24530084]
[1764619501241,0.13440394,85612.0,85560.0,0.59983331]
[1764619501242,0.36801605,85612.0,85560.0,0.59983331]
[1764619501423,0.36801605,85612.0,85602.0,0.23363785]
[1764619501635,0.13440394,85612.0,85606.0,0.01168142]
[1764619501856,0.36801605,85612.0,85604.0,0.23363366]
[1764619502089,0.36801605,85612.0,85600.0,0.01168224]
[1764619502090,0.36801605,85612.0,85594.0,0.2336607]
[1764619502307,0.36801605,85612.0,85601.0,0.01856]
[1764619502896,0.36801605,85612.0,85601.0,0.0302421]
[1764619503060,0.36801605,85612.0,85602.0,0.01168197]
[1764619503276,0.36801605,85612.0,85603.0,0.01168183]
[1764619503888,0.36801605,85612.0,85601.0,0.01856]
[1764619504136,0.36801605,85612.0,85602.0,0.01168197]
[1764619504274,0.36901703,85612.0,85602.0,0.01168197]
[1764619504461,0.36901703,85612.0,85605.0,0.01168156]
[1764619504664,0.36901703,85612.0,85608.0,0.01168115]
[1764619505078,0.13540492,85612.0,85609.0,0.24530093]
[1764619505282,0.36901703,85612.0,85611.0,0.01185711]
[1764619505679,0.36901703,85612.0,85611.0,0.00038885]
[1764619506095,0.13540492,85612.0,85611.0,0.00038885]
[1764619506299,0.13540492,85612.0,85611.0,0.23400368]
[1764619506505,0.13540492,85612.0,85611.0,0.24547194]
[1764619506904,0.13540492,85612.0,85611.0,0.23400368]
[1764619507107,0.13540492,85612.0,85611.0,0.24547194]
[1764619507590,0.13540492,85612.0,85611.0,0.26403194]
[1764619510323,0.13540492,85612.0,85611.0,0.3499809]
[1764619510902,0.13540492,85612.0,85611.0,0.7499809]
[1764619511434,0.13540492,85612.0,85611.0,0.66403194]
[1764619512014,0.13540492,85612.0,85611.0,0.75232114]
[1764619512217,0.13540492,85612.0,85611.0,0.64547194]
[1764619512516,0.13540492,85612.0,85611.0,0.65252368]
[1764619512725,0.13540492,85612.0,85611.0,0.66399194]
[1764619514448,0.00100098,85612.0,85611.0,0.66399194]
[1764619516472,0.00100098,85612.0,85611.0,0.529588]
[1764619518081,0.00100098,85612.0,85611.0,0.59211099]
[1764619519068,0.0001,85647.0,85646.0,0.23351937]
[1764619519404,0.0001,85647.0,85646.0,0.26350763]
[1764619519735,0.00122948,85647.0,85646.0,0.26350763]
[1764619520181,0.00161944,85647.0,85646.0,0.26350763]
[1764619522982,0.00161944,85647.0,85646.0,0.64498763]
[1764619523180,0.00161944,85647.0,85646.0,0.65203937]
[1764619523706,0.00161944,85647.0,85646.0,0.66350763]
[1764619523904,0.00161944,85647.0,85646.0,0.71456236]
[1764619524106,0.00161944,85647.0,85646.0,0.72603062]
[1764619524728,0.00161944,85647.0,85646.0,1.04903062]
[1764619524883,1e-08,85647.0,85646.0,1.04903062]
[1764619525285,1e-08,85651.0,85650.0,0.63049971]
[1764619525489,1e-08,85651.0,85650.0,0.63054068]
[1764619525834,1e-08,85660.0,85659.0,0.63047518]
[1764619526030,1e-08,85660.0,85659.0,0.76640259]
[1764619526258,0.01166738,85709.0,85659.0,0.76640259]
[1764619526259,0.00999999,85740.0,85696.0,0.23338312]
[1764619526474,0.01166099,85756.0,85696.0,0.23338312]
[1764619526475,0.02502156,85765.0,85727.0,0.24476698]
[1764619526685,0.04169394,85779.0,85727.0,0.24476698]
[1764619526686,0.01165963,85766.0,85727.0,0.26332698]
[1764619526901,0.01166207,85748.0,85727.0,0.23329872]
[1764619527152,0.01166126,85754.0,85727.0,0.24476698]
[1764619527366,0.03166112,85755.0,85727.0,0.25189872]
[1764619527367,0.02,85755.0,85727.0,0.25189872]
[1764619527628,0.02,85755.0,85727.0,0.26340795]
[1764619527837,0.02,85755.0,85727.0,0.32593094]
[1764619528266,0.00397947,85728.0,85727.0,0.32593094]
[1764619528508,0.00397947,85728.0,85727.0,0.64893094]
[1764619528718,0.02,85755.0,85754.0,0.24469353]
[1764619528932,0.02,85755.0,85754.0,0.26329353]
[1764619529147,0.01250069,85758.0,85754.0,0.26329353]
[1764619529148,0.01250069,85758.0,85757.0,0.23321711]
[1764619529362,0.001,85801.0,85762.0,0.55620351]
[1764619529582,0.001,85801.0,85800.0,0.23310023]
[1764619529583,0.0001,85801.0,85800.0,0.23310023]
[1764619530004,0.00049093,85801.0,85800.0,0.23310023]
[1764619530225,0.00049093,85801.0,85800.0,0.24456849]
[1764619530662,0.00049093,85801.0,85794.0,0.01165582]
[1764619530879,0.00049093,85801.0,85798.0,0.01165528]
[1764619531124,0.00049093,85801.0,85797.0,0.01165541]
[1764619531442,0.00049093,85801.0,85800.0,0.01146826]
[1764619531659,0.00049093,85801.0,85799.0,0.23310294]
[1764619531906,0.00545068,85801.0,85800.0,0.01146826]
[1764619532622,0.00545068,85801.0,85800.0,0.51439866]
[1764619533050,0.00545068,85801.0,85800.0,0.91439866]
[1764619533916,0.01164795,85852.0,85800.0,0.91439866]
[1764619533917,0.00101237,85858.0,85835.0,0.23300312]
[1764619534136,0.01164849,85848.0,85836.0,0.01864]
[1764619534339,0.01164849,85848.0,85835.0,4.097e-05]
[1764619534340,0.23299975,85837.0,85835.0,4.097e-05]
[1764619534517,0.01164863,85847.0,85835.0,4.097e-05]
[1764619534518,0.01164754,85855.0,85835.0,4.097e-05]
[1764619534731,0.01164876,85846.0,85835.0,4.097e-05]
[1764619534930,0.01164944,85841.0,85835.0,4.097e-05]
[1764619535137,0.23300019,85837.0,85835.0,4.097e-05]
[1764619535335,0.23300109,85837.0,85835.0,4.097e-05]
[1764619535534,0.2330007,85837.0,85835.0,4.097e-05]
[1764619535959,0.2329755,85846.0,85835.0,4.097e-05]
[1764619536137,0.01164795,85852.0,85839.0,0.24464339]
[1764619536384,0.01164781,85853.0,85846.0,0.01146826]
[1764619536543,0.24460699,85852.0,85846.0,0.01146826]
[1764619536720,0.23294874,85856.0,85840.0,0.01164958]
[1764619536721,0.00101237,85858.0,85851.0,0.02311634]
[1764619536919,0.00101237,85858.0,85857.0,0.01146826]
[1764619537346,0.00101237,85858.0,85856.0,0.01146826]
[1764619537683,0.23395546,85858.0,85851.0,0.01146826]
[1764619537823,0.23395546,85858.0,85810.0,0.00999999]
[1764619537824,0.01164808,85851.0,85837.0,0.25611789]
[1764619538027,0.01164822,85850.0,85837.0,0.01164998]
[1764619538235,0.01164754,85855.0,85844.0,0.01164903]
[1764619538439,0.0116474,85856.0,85841.0,0.01164944]
[1764619538637,0.01164781,85853.0,85851.0,0.01146826]
[1764619538869,0.24459844,85855.0,85852.0,0.01146826]
[1764619539074,0.23295633,85853.0,85852.0,0.01146826]
[1764619539318,0.23296718,85849.0,85839.0,0.01864]
[1764619539485,0.01164876,85846.0,85845.0,0.01146826]
[1764619539686,0.01164795,85852.0,85845.0,0.01146826]
[1764619539952,0.00144722,85846.0,85845.0,0.2444463]
[1764619540433,0.0001,85879.0,85857.0,0.23294547]
[1764619540643,0.0001,85879.0,85857.0,0.26305373]
[1764619540850,0.0001,85879.0,85857.0,0.64441373]
[1764619541060,0.00139814,85858.0,85857.0,0.65158547]
[1764619541278,0.00139814,85858.0,85857.0,0.64441373]
[1764619541493,0.00139814,85858.0,85857.0,0.63294547]
[1764619541705,0.00139814,85858.0,85857.0,0.65158547]
[1764619542150,0.00139814,85858.0,85857.0,0.66305373]
[1764619542335,0.00139814,85858.0,85857.0,0.72557672]
[1764619543509,0.00139814,85858.0,85857.0,0.70693672]
[1764619543708,0.00139814,85858.0,85857.0,0.72557672]
[1764619544264,1e-08,85858.0,85857.0,0.72557672]
[1764619544677,0.0001,85879.0,85878.0,0.24435677]
[1764619544874,0.0001,85879.0,85878.0,0.26299677]
[1764619545096,0.0001,85879.0,85878.0,0.23288851]
[1764619545274,0.00077489,85879.0,85878.0,0.66299677]
[1764619545730,0.00077489,85879.0,85878.0,0.66303774]
[1764619545951,0.00077489,85879.0,85878.0,0.71409247]
[1764619546187,0.00077489,85879.0,85878.0,0.72556073]
[1764619546420,0.01163941,85915.0,85878.0,0.72556073]
[1764619546421,0.0006,85920.0,85890.0,0.01164279]
[1764619546655,0.0006,85920.0,85878.0,0.40004097]
[1764619546656,0.01164157,85899.0,85887.0,0.0116432]
[1764619546875,0.01164157,85899.0,85890.0,0.01146826]
[1764619547096,0.01164144,85900.0,85891.0,0.01864]
[1764619547309,0.01164361,85884.0,85874.0,0.01164496]
[1764619547561,0.24449826,85891.0,85880.0,0.01164415]
[1764619547797,0.01164239,85893.0,85883.0,0.01164374]
[1764619548023,0.23284904,85893.0,85885.0,0.01164347]
[1764619548244,0.01164239,85893.0,85891.0,0.01146826]
[1764619548476,0.24449048,85893.0,85891.0,0.01146826]
[1764619548703,0.0116409,85904.0,85895.0,0.01164212]
[1764619548938,0.23279162,85914.0,85900.0,0.01164144]
[1764619549174,0.01163927,85916.0,85908.0,0.01146826]
[1764619549397,0.24444091,85911.0,85908.0,0.01146826]
[1764619549604,0.24444091,85911.0,85906.0,0.01864]
[1764619549605,0.23280577,85909.0,85906.0,0.01864]
[1764619549843,0.01164049,85907.0,85890.0,0.01164279]
[1764619550089,0.24445796,85905.0,85896.0,0.01146826]
[1764619550367,0.23284364,85895.0,85894.0,0.01864]
[1764619550578,0.23283983,85896.0,85873.0,0.11740741]
[1764619550579,0.01164279,85890.0,85889.0,0.01864]
[1764619550828,0.23282865,85901.0,85868.0,0.01164578]
[1764619550829,0.01164415,85880.0,85868.0,0.01164578]
[1764619551080,0.01164415,85880.0,85872.0,0.01164523]
[1764619551291,0.0116432,85887.0,85878.0,0.01164442]
[1764619551521,0.0116432,85887.0,85856.0,0.0116474]
[1764619551522,0.01164523,85872.0,85856.0,0.0116474]
[1764619551744,0.01164551,85870.0,85830.0,0.99849958]
[1764619551959,0.01164551,85870.0,85835.0,0.01165025]
[1764619551960,0.01164781,85853.0,85835.0,0.01165025]
[1764619552164,0.00999999,85870.0,85837.0,0.01146826]
[1764619552165,0.323,85869.0,85837.0,0.01146826]
[1764619552389,0.01164876,85846.0,85837.0,0.01146826]
[1764619552597,0.23299525,85839.0,85837.0,0.01150923]
[1764619552802,0.23299525,85839.0,85837.0,4.097e-05]
[1764619553015,0.23299551,85839.0,85837.0,4.097e-05]
[1764619553857,0.35040292,85839.0,85837.0,4.097e-05]
[1764619554058,0.45883552,85839.0,85837.0,4.097e-05]
[1764619554460,0.35040292,85839.0,85837.0,4.097e-05]
[1764619554724,0.35040373,85839.0,85837.0,4.097e-05]
[1764619555123,0.23299432,85839.0,85837.0,4.097e-05]
[1764619555372,0.35040173,85839.0,85837.0,4.097e-05]
[1764619556119,0.11740741,85839.0,85837.0,4.097e-05]
[1764619556493,0.35040443,85839.0,85837.0,4.097e-05]
[1764619556689,0.35040328,85839.0,85837.0,4.097e-05]
[1764619557179,0.01164754,85855.0,85848.0,0.01164849]
[1764619559988,0.01164483,85875.0,85869.0,0.01164564]
[1764619560167,0.01164469,85876.0,85868.0,0.01164578]
[1764619560361,0.01164537,85871.0,85868.0,4.097e-05]
[1764619560852,0.23291099,85870.0,85868.0,4.097e-05]
[1764619561747,0.24455582,85871.0,85868.0,4.097e-05]
[1764619561748,0.01164537,85871.0,85868.0,4.097e-05]
[1764619561957,0.24455376,85871.0,85868.0,4.097e-05]
[1764619562263,0.23291221,85870.0,85868.0,4.097e-05]
[1764619562382,0.35031962,85870.0,85868.0,4.097e-05]
[1764619562584,0.45330602,85870.0,85868.0,4.097e-05]
[1764619562783,0.32664621,85869.0,85868.0,4.097e-05]
[1764619563410,0.32664621,85869.0,85822.0,0.23536306]
[1764619563411,0.23303776,85823.0,85822.0,0.00232297]
[1764619563641,0.23303776,85823.0,85822.0,0.00236398]
[1764619564029,0.323,85840.0,85822.0,0.00236398]
[1764619564231,0.23297404,85847.0,85835.0,0.01165025]
[1764619564411,0.01164795,85852.0,85838.0,0.01164985]
[1764619564614,0.23299082,85841.0,85833.0,0.23300863]
[1764619564842,0.01164958,85840.0,85832.0,0.01165066]
[1764619565018,0.01164971,85839.0,85832.0,0.01146826]
[1764619565215,0.01164917,85843.0,85833.0,0.23300944]
[1764619565450,0.01164903,85844.0,85839.0,0.01164971]
[1764619565649,1.70471919,85870.0,85830.0,0.01165093]
[1764619565854,0.01164971,85839.0,85837.0,0.01146826]
[1764619566012,0.23299704,85838.0,85837.0,0.01146826]
[1764619566216,0.0116493,85842.0,85837.0,0.01146826]
[1764619566498,0.01164781,85853.0,85842.0,0.23298618]
[1764619566655,0.01164781,85853.0,85845.0,0.0116489]
[1764619566831,0.01164659,85862.0,85854.0,0.01164768]
[1764619567038,0.01164659,85862.0,85832.0,0.11740741]
[1764619567039,0.0116489,85845.0,85842.0,0.01868]
[1764619567265,0.0116489,85845.0,85838.0,0.01164985]
[1764619567467,0.24462758,85845.0,85837.0,0.24464939]
[1764619567660,0.2446301,85844.0,85838.0,0.01146826]
[1764619567865,0.24464558,85839.0,85833.0,0.01146826]
[1764619568063,0.24464894,85838.0,85834.0,0.01146826]
[1764619568318,0.01164998,85837.0,85833.0,4.101e-05]
[1764619568524,0.0116493,85842.0,85833.0,4.101e-05]
[1764619568741,0.01164985,85838.0,85833.0,4.101e-05]
[1764619568983,0.23300555,85835.0,85833.0,4.101e-05]
[1764619570773,0.07305423,85835.0,85833.0,4.101e-05]
[1764619570988,0.39605423,85835.0,85833.0,4.101e-05]
[1764619571201,0.00364775,85834.0,85833.0,4.101e-05]
[1764619571425,0.32664775,85834.0,85833.0,4.101e-05]
[1764619571637,0.323,85834.0,85833.0,4.101e-05]
[1764619571849,0.01164985,85838.0,85833.0,4.101e-05]
[1764619572102,0.24464861,85838.0,85833.0,4.101e-05]
[1764619572305,0.01165012,85836.0,85833.0,4.101e-05]
[1764619572510,0.23300607,85835.0,85833.0,4.101e-05]
[1764619572717,0.23300661,85835.0,85833.0,4.101e-05]
[1764619573325,0.44827492,85835.0,85833.0,4.101e-05]
[1764619573533,0.23300661,85835.0,85833.0,4.101e-05]
[1764619573682,0.35041402,85835.0,85833.0,4.101e-05]
[1764619577446,0.01164849,85848.0,85837.0,0.01164998]
[1764619577683,0.01164944,85841.0,85839.0,0.01146826]
[1764619577883,0.39487254,85861.0,85839.0,0.01146826]
[1764619577884,0.01164822,85850.0,85839.0,0.01146826]
[1764619578127,0.23298358,85843.0,85839.0,0.01146826]
[1764619578328,0.24463275,85843.0,85839.0,0.01146826]
[1764619578481,0.01164917,85843.0,85839.0,0.01146826]
[1764619578681,0.23299161,85840.0,85839.0,0.01146826]
[1764619578889,0.2329916,85841.0,85839.0,0.01146826]
[1764619579092,0.01164863,85847.0,85839.0,0.01146826]
[1764619579291,0.14243676,85866.0,85839.0,0.03014826]
[1764619579523,0.01164754,85855.0,85849.0,0.01164835]
[1764619579719,0.01164754,85855.0,85848.0,0.01146826]
[1764619579720,0.24460467,85853.0,85848.0,0.25608629]
[1764619579918,0.24461001,85851.0,85848.0,0.01146826]
[1764619580147,0.24461001,85851.0,85833.0,0.01169154]
[1764619580148,0.23298949,85841.0,85833.0,0.01169154]
[1764619580412,0.01164958,85840.0,85835.0,0.01146826]
[1764619580610,0.24464448,85839.0,85834.0,0.03033039]
[1764619580821,0.01164985,85838.0,85834.0,0.01868]
[1764619581024,0.01164985,85838.0,85833.0,4.101e-05]
[1764619581025,0.23300789,85834.0,85833.0,4.101e-05]
[1764619581227,0.55965517,85834.0,85833.0,4.101e-05]
[1764619581426,0.58475435,85834.0,85833.0,4.101e-05]
[1764619584159,0.61611978,85834.0,85833.0,4.101e-05]
[1764619584379,0.58475435,85834.0,85833.0,4.101e-05]
[1764619584623,0.73134574,85834.0,85833.0,4.101e-05]
[1764619585282,0.58475435,85834.0,85833.0,4.101e-05]
[1764619585476,0.00364728,85834.0,85833.0,4.101e-05]
[1764619585682,0.01164971,85839.0,85833.0,4.101e-05]
[1764619585888,0.01164985,85838.0,85833.0,4.101e-05]
[1764619586092,0.23300589,85835.0,85834.0,0.01146826]
[1764619586289,0.23300589,85835.0,85833.0,4.101e-05]
[1764619586505,0.23300589,85835.0,85834.0,0.01146826]
[1764619587723,0.23300589,85835.0,85833.0,4.101e-05]
[1764619591428,0.03136543,85852.0,85842.0,0.0116493]
[1764619591578,0.01164713,85858.0,85849.0,0.01164835]
[1764619591783,0.24459436,85857.0,85853.0,0.24460324]
[1764619591984,0.01164659,85862.0,85857.0,0.01164727]
[1764619592189,0.23293733,85860.0,85859.0,0.01146826]
[1764619592398,0.01164646,85863.0,85848.0,0.01164849]
[1764619592399,0.24458212,85861.0,85849.0,0.01146826]
[1764619592618,0.23294819,85856.0,85852.0,0.01146826]
[1764619592816,0.23295968,85852.0,85849.0,0.02311661]
[1764619593001,0.01164795,85852.0,85849.0,0.01146826]
[1764619593435,0.2329626,85851.0,85849.0,0.01150927]
[1764619593795,0.01164795,85852.0,85849.0,0.01150927]
[1764619594102,0.23296245,85851.0,85849.0,0.01150927]
[1764619594328,0.23296447,85850.0,85849.0,4.101e-05]
[1764619594491,0.01164768,85854.0,85849.0,4.101e-05]
[1764619594492,0.24460292,85854.0,85849.0,4.101e-05]
[1764619594690,0.23296227,85851.0,85849.0,4.101e-05]
[1764619594895,0.23296227,85851.0,85850.0,0.01146826]
[1764619595770,0.23296227,85851.0,85849.0,4.101e-05]
[1764619596663,0.0116474,85856.0,85849.0,4.101e-05]
[1764619596805,0.01164686,85860.0,85849.0,4.101e-05]
[1764619596806,0.01164551,85870.0,85864.0,0.01164632]
[1764619596996,0.0116451,85873.0,85871.0,0.01146826]
[1764619597201,0.01164415,85880.0,85873.0,0.0116451]
[1764619597399,0.01164469,85876.0,85873.0,0.0116451]
[1764619597733,0.01164388,85882.0,85873.0,0.0116451]
[1764619597734,0.01164388,85882.0,85878.0,0.24453187]
[1764619597938,0.23288345,85880.0,85877.0,0.01164456]
[1764619598065,0.23288345,85880.0,85879.0,0.01146826]
[1764619598280,0.23287198,85885.0,85879.0,0.01146826]
[1764619598281,0.03136543,85908.0,85886.0,0.24433508]
[1764619598489,0.0006,85920.0,85879.0,0.01868]
[1764619598490,0.0006,85920.0,85919.0,0.23277738]
[1764619598694,0.0006,85920.0,85919.0,0.25145738]
[1764619599026,0.0020513,85920.0,85919.0,0.66292564]
[1764619599241,0.0020513,85920.0,85919.0,0.64424564]
[1764619599447,0.0020513,85920.0,85919.0,0.63277738]
[1764619599644,0.0020513,85920.0,85919.0,0.64424564]
[1764619599825,0.0020513,85920.0,85919.0,0.65149738]
[1764619600029,0.0020513,85920.0,85919.0,0.66296564]
[1764619600311,0.0020513,85920.0,85919.0,0.76890479]
[1764619600884,0.0020513,85920.0,85919.0,0.78037305]
[1764619601222,0.0020513,85920.0,85919.0,0.76165305]
[1764619601428,0.0020513,85920.0,85919.0,0.51740741]
[1764619601628,0.0020513,85920.0,85919.0,0.01872]
[1764619601966,0.0020513,85920.0,85919.0,0.36890479]
[1764619602167,0.0020513,85920.0,85919.0,0.76890479]
[1764619602378,0.0020513,85920.0,85919.0,0.78037305]
[1764619602812,0.0020513,85920.0,85919.0,0.76890479]
[1764619603051,0.0020513,85920.0,85919.0,0.78037305]
[1764619604214,0.0020513,85920.0,85919.0,0.76165305]
[1764619604465,0.0020513,85920.0,85919.0,0.4]
[1764619604667,0.23273878,85934.0,85919.0,0.01872]
[1764619604867,0.23273878,85934.0,85905.0,0.11740741]
[1764619604868,0.01163914,85917.0,85914.0,0.01146826]
[1764619605061,0.02327388,85933.0,85914.0,0.01146826]
[1764619605062,0.23276925,85922.0,85914.0,0.01876101]
[1764619605277,0.01163846,85922.0,85914.0,0.03040055]
[1764619605399,0.01163873,85920.0,85917.0,0.01146826]
[1764619605596,0.01163724,85931.0,85918.0,0.011639]
[1764619605953,0.24439821,85926.0,85920.0,0.01163873]
[1764619606191,0.01163914,85917.0,85899.0,0.01164157]
[1764619606396,0.35019292,85916.0,85914.0,4.101e-05]
[1764619606602,0.323,85915.0,85914.0,4.101e-05]
[1764619608766,0.44040741,85915.0,85914.0,4.101e-05]
[1764619609095,0.55563337,85915.0,85914.0,4.101e-05]
[1764619609341,0.57435337,85915.0,85914.0,4.101e-05]
[1764619609745,0.63687636,85915.0,85914.0,4.101e-05]
[1764619610208,0.0116474,85856.0,85813.0,0.11740741]
[1764619610474,0.63687636,85915.0,85813.0,0.11740741]
[1764619610475,0.0116489,85845.0,85832.0,0.0033187]
[1764619610681,0.23296175,85851.0,85832.0,0.01496936]
[1764619610934,0.23297398,85847.0,85836.0,0.24465023]
[1764619611142,0.01164944,85841.0,85835.0,0.01165025]
[1764619611368,0.01164958,85840.0,85832.0,0.23633066]
[1764619611579,0.23300639,85835.0,85832.0,0.0033187]
[1764619611823,0.23300997,85834.0,85832.0,0.0033187]
[1764619612029,0.24465664,85835.0,85832.0,0.0033187]
[1764619612236,0.24465759,85835.0,85832.0,0.0033187]
[1764619612451,0.24465126,85837.0,85832.0,0.0033187]
[1764619612672,0.23300905,85834.0,85832.0,0.0033187]
[1764619613554,0.01164985,85838.0,85832.0,0.0033187]
[1764619613766,0.01164903,85844.0,85833.0,0.01165053]
[1764619613980,0.01164944,85841.0,85836.0,0.01146826]
[1764619614210,0.2329989,85838.0,85836.0,0.01146826]
[1764619614401,0.23301061,85833.0,85832.0,0.0033187]
[1764619615152,0.2330079,85834.0,85832.0,0.0033187]
[1764619615375,0.01164985,85838.0,85832.0,0.0033187]
[1764619615640,0.01165025,85835.0,85832.0,0.0033187]
[1764619615852,0.23300955,85834.0,85832.0,0.0033187]
[1764619616272,0.07456149,85833.0,85832.0,0.0033187]
[1764619616483,0.23300955,85834.0,85832.0,0.0033187]
[1764619617687,0.11740741,85833.0,85832.0,0.0033187]
[1764619617893,0.44040741,85833.0,85832.0,0.0033187]
[1764619618301,0.323,85833.0,85832.0,0.0033187]
[1764619618501,0.23300955,85834.0,85832.0,0.0033187]
[1764619618712,0.35041696,85834.0,85832.0,0.0033187]
[1764619619131,0.23300955,85834.0,85832.0,0.0033187]
[1764619621574,0.23300848,85834.0,85832.0,0.0033187]
[1764619622864,0.01164958,85840.0,85833.0,0.01165053]
[1764619623104,0.23298157,85844.0,85836.0,0.01165012]
[1764619623320,0.01164863,85847.0,85832.0,0.0033187]
[1764619623321,0.01164795,85852.0,85841.0,0.24463706]
[1764619623549,0.01164835,85849.0,85842.0,0.24463431]
[1764619623763,0.23298425,85843.0,85840.0,0.01146826]
[1764619623964,0.23300903,85834.0,85832.0,0.0033187]
[1764619624498,0.23300903,85834.0,85832.0,0.00371015]
[1764619625302,0.01164971,85839.0,85832.0,0.00371015]
[1764619625507,0.01165012,85836.0,85832.0,0.00371015]
[1764619625910,0.01165012,85836.0,85832.0,0.01536081]
[1764619626137,0.01164998,85837.0,85833.0,0.24466093]
[1764619626356,0.01164944,85841.0,85838.0,0.01146826]
[1764619626561,0.01164998,85837.0,85832.0,0.01536081]
[1764619626761,0.23300247,85836.0,85833.0,0.01165053]
[1764619626965,0.23299801,85838.0,85833.0,0.25612815]
[1764619627321,0.24464991,85837.0,85834.0,0.01165039]
[1764619627530,0.01164998,85837.0,85834.0,0.24465799]
[1764619627713,0.24463631,85842.0,85836.0,0.01165012]
[1764619628009,0.24463833,85841.0,85838.0,0.23299684]
[1764619628184,0.24463833,85841.0,85832.0,0.00371015]
[1764619628185,0.23301061,85833.0,85832.0,0.00371015]
[1764619629183,0.2446581,85835.0,85832.0,0.00371015]
[1764619629392,0.01164903,85844.0,85835.0,0.01146826]
[1764619629595,0.24464203,85840.0,85835.0,0.25612335]
[1764619629795,0.23297231,85848.0,85835.0,0.01165025]
[1764619630058,0.01164917,85843.0,85836.0,0.01165012]
[1764619630252,0.23298889,85841.0,85835.0,0.01165025]
[1764619630419,0.23299208,85840.0,85837.0,0.01146826]
[1764619630681,0.24463564,85842.0,85837.0,0.01146826]
[1764619630809,0.2329904,85841.0,85837.0,0.25611737]
[1764619631159,0.01164958,85840.0,85837.0,0.01146826]
[1764619631367,0.23300847,85834.0,85832.0,0.00371015]
[1764619631580,0.23301061,85833.0,85832.0,0.00371015]
[1764619631706,0.23300847,85834.0,85832.0,0.00371015]
[1764619631912,0.23301061,85833.0,85832.0,0.00371015]
[1764619632203,0.11740741,85850.0,85832.0,0.00371015]
[1764619632399,0.06289232,85895.0,85832.0,0.00371015]
[1764619632400,0.01164401,85881.0,85857.0,0.01164727]
[1764619632526,0.01164401,85881.0,85841.0,0.11740741]
[1764619632527,0.59654691,85890.0,85865.0,0.01146826]
[1764619632726,0.59654691,85890.0,85857.0,0.23294443]
[1764619632727,0.01164469,85876.0,85857.0,0.23294443]
[1764619632937,0.01164429,85879.0,85853.0,0.01164781]
[1764619633171,0.23286411,85887.0,85868.0,0.01164578]
[1764619633518,0.01164429,85879.0,85865.0,0.02311444]
[1764619633688,0.01164374,85883.0,85868.0,0.01164578]
[1764619633906,0.02677983,85882.0,85871.0,0.24455272]
[1764619634106,0.11740741,85876.0,85871.0,0.01164537]
[1764619634319,0.11740741,85876.0,85873.0,0.24454598]
[1764619634539,0.11740741,85876.0,85873.0,0.24454659]
[1764619634738,0.11740741,85876.0,85860.0,0.60819377]
[1764619634944,0.11740741,85876.0,85874.0,0.23289903]
[1764619635086,0.11740741,85876.0,85870.0,0.2329089]
[1764619635296,0.11740741,85876.0,85856.0,0.0116474]
[1764619635297,0.01164537,85871.0,85856.0,0.0116474]
[1764619635496,0.11740741,85875.0,85865.0,0.01919145]
[1764619635692,0.01164347,85885.0,85871.0,0.01164537]
[1764619635958,0.23287224,85884.0,85865.0,0.01919145]
[1764619636113,0.24452157,85882.0,85877.0,0.01164456]
[1764619636311,0.12905034,85889.0,85880.0,0.01146826]
[1764619636518,0.0188,85900.0,85893.0,0.01164239]
[1764619636519,0.24447155,85900.0,85893.0,0.01164239]
[1764619636723,0.01164103,85903.0,85897.0,0.24447877]
[1764619636926,0.23282217,85903.0,85898.0,0.01164171]
[1764619637126,0.24446772,85901.0,85897.0,0.23283664]
[1764619637401,0.24446772,85901.0,85893.0,0.0188]
[1764619637402,0.01164185,85897.0,85893.0,0.0188]
[1764619637616,0.01164185,85897.0,85871.0,0.34935919]
[1764619637617,0.01164415,85880.0,85873.0,0.01146826]
[1764619637817,0.01164551,85870.0,85857.0,0.01164727]
[1764619638033,0.24456762,85866.0,85861.0,0.01164673]
[1764619638247,0.01164483,85875.0,85871.0,0.2329056]
[1764619638419,0.24453382,85878.0,85872.0,0.01164523]
[1764619638619,0.24453382,85878.0,85874.0,0.01164496]
[1764619639000,0.01164307,85888.0,85882.0,0.24452032]
[1764619639205,0.01164144,85900.0,85890.0,0.01164279]
[1764619639554,0.01164063,85906.0,85897.0,0.23283668]
[1764619639868,0.01164117,85902.0,85896.0,0.01164198]
[1764619640077,0.01164117,85902.0,85895.0,0.01146826]
[1764619640255,0.23283971,85896.0,85895.0,0.01146826]
[1764619640454,0.23283971,85896.0,85895.0,0.01185971]
[1764619641054,0.23283971,85896.0,85895.0,0.00039145]
[1764619642074,0.01164035,85908.0,85901.0,0.0116413]
[1764619642279,0.0188,85922.0,85895.0,0.00039145]
[1764619642280,0.01163927,85916.0,85910.0,0.01164008]
[1764619642482,0.24443025,85915.0,85911.0,0.26323788]
[1764619642832,0.24440703,85923.0,85921.0,0.01146826]
[1764619643454,0.24440703,85923.0,85872.0,0.48614212]
[1764619643455,0.01163886,85919.0,85916.0,0.0188]
[1764619643657,0.2327828,85917.0,85916.0,0.0188]
[1764619644080,0.2327828,85917.0,85916.0,0.01884115]
[1764619644282,0.23278009,85918.0,85916.0,0.01884115]
[1764619644283,0.23278068,85918.0,85916.0,0.01884115]
[1764619645338,0.23278068,85918.0,85916.0,4.115e-05]
[1764619645944,0.35018809,85918.0,85916.0,4.115e-05]
[1764619646483,0.323,85917.0,85916.0,4.115e-05]
[1764619646690,0.32664445,85917.0,85916.0,4.115e-05]
[1764619648434,0.0900196,85917.0,85916.0,4.115e-05]
[1764619648640,0.35018809,85918.0,85916.0,4.115e-05]
[1764619648844,0.027631,85917.0,85916.0,4.115e-05]
[1764619649051,0.00364444,85917.0,85916.0,4.115e-05]
[1764619649258,0.23278068,85918.0,85916.0,4.115e-05]
[1764619649694,0.35018809,85918.0,85916.0,4.115e-05]
[1764619650811,0.2327828,85917.0,85916.0,4.115e-05]
[1764619654544,0.11740741,85902.0,85843.0,0.23298248]
[1764619654760,0.01164537,85871.0,85853.0,0.01146826]
[1764619654992,0.01164496,85874.0,85863.0,0.01146826]
[1764619655233,0.24456141,85868.0,85867.0,0.01146826]
[1764619655484,0.01164456,85877.0,85860.0,0.59654691]
[1764619655485,0.23289835,85875.0,85860.0,0.59654691]
[1764619655730,0.11740741,85917.0,85780.0,0.10388688]
[1764619655731,0.01164415,85880.0,85874.0,0.11740741]
[1764619656008,0.0188,85905.0,85868.0,0.01146826]
[1764619656009,0.01164564,85869.0,85868.0,0.01146826]
[1764619656266,0.23291292,85869.0,85868.0,0.0188]
[1764619656461,0.59654691,85910.0,85852.0,0.23295808]
[1764619656462,0.01164673,85861.0,85852.0,0.23295808]
[1764619656664,0.24458135,85861.0,85860.0,0.01146826]
[1764619656820,0.0116451,85873.0,85858.0,0.23294263]
[1764619657024,0.23293733,85860.0,85859.0,0.0188]
[1764619657274,0.23294397,85858.0,85857.0,0.01146826]
[1764619657469,0.01164754,85855.0,85852.0,0.01185971]
[1764619657787,0.23295366,85854.0,85853.0,0.0188]
[1764619658222,0.24459732,85856.0,85854.0,0.01146826]
[1764619658451,0.24458059,85862.0,85853.0,0.03044781]
[1764619658653,0.24459106,85858.0,85857.0,0.01146826]
[1764619658876,0.01164713,85858.0,85856.0,0.01146826]
[1764619659089,0.24458443,85860.0,85856.0,0.23294694]
[1764619659313,0.23292937,85863.0,85855.0,0.01164754]
[1764619659497,0.01164713,85858.0,85857.0,0.01146826]